bitfinex-derivatives/quotes_BTCF0:USTF0_20260119
["timestamp","ask_amount","ask_price","bid_price","bid_amount"]
[1768787949444,0.010802,92611.0,92596.0,0.010804]
[1768787949750,0.01080295,92614.0,92598.0,0.010804]
[1768787949948,9.5e-07,92614.0,92595.0,0.09724]
[1768787950336,9.5e-07,92614.0,92601.0,0.010803]
[1768787951048,9.5e-07,92614.0,92595.0,0.09724]
[1768787951049,0.010802,92613.0,92598.0,0.010804]
[1768787952238,9.5e-07,92614.0,92595.0,0.09724]
[1768787952441,0.01080295,92614.0,92595.0,0.09724]
[1768787952841,0.010802,92612.0,92596.0,0.010804]
[1768787953044,0.010802,92612.0,92598.0,0.010804]
[1768787953247,0.01080295,92614.0,92594.0,0.06468444]
[1768787953552,0.00819795,92614.0,92598.0,0.010804]
[1768787954051,0.010802,92612.0,92597.0,0.010804]
[1768787954951,0.010802,92612.0,92600.0,0.14564559]
[1768787955252,0.010802,92614.0,92600.0,0.14564559]
[1768787955752,0.010802,92614.0,92599.0,0.010804]
[1768787955942,0.010802,92614.0,92600.0,0.14564559]
[1768787956853,0.09444666,92615.0,92601.0,0.010803]
[1768787957047,0.09728,92619.0,92586.0,0.010805]
[1768787957048,0.010803,92601.0,92586.0,0.010805]
[1768787957348,0.09724,92603.0,92590.0,0.14564559]
[1768787957743,0.09724,92603.0,92590.0,0.15645059]
[1768787958052,0.09724,92603.0,92592.0,0.010804]
[1768787958247,0.09724,92603.0,92590.0,0.14564559]
[1768787958452,0.09724,92603.0,92594.0,0.010804]
[1768787958745,0.15943685,92614.0,92593.0,0.14564559]
[1768787958951,0.09724,92613.0,92600.0,0.14564559]
[1768787959151,0.09724,92613.0,92600.0,0.0114121]
[1768787959353,0.09724,92613.0,92600.0,0.0222151]
[1768787959738,0.010802,92616.0,92600.0,0.0222151]
[1768787959949,0.010802,92615.0,92600.0,0.0114121]
[1768787960149,0.09724,92614.0,92600.0,0.0114121]
[1768787960353,0.010802,92612.0,92600.0,0.0114121]
[1768787960757,0.00237559,92609.0,92600.0,0.0114121]
[1768787961155,0.00237559,92609.0,92599.0,0.06468444]
[1768787961457,0.07687848,92622.0,92609.0,0.010802]
[1768787961755,0.09724,92621.0,92609.0,0.010802]
[1768787962258,0.09724,92621.0,92606.0,0.010803]
[1768787962959,0.09724,92621.0,92605.0,0.010803]
[1768787963254,0.09724,92621.0,92603.0,0.09639047]
[1768787963955,0.09724,92621.0,92607.0,0.010803]
[1768787964955,0.09724,92621.0,92604.0,0.010803]
[1768787965257,0.09724,92621.0,92606.0,0.010803]
[1768787965451,0.09724,92620.0,92603.0,0.09639047]
[1768787965843,0.09724,92620.0,92607.0,0.010803]
[1768787966047,0.09724,92620.0,92603.0,0.09639047]
[1768787966048,0.09724,92620.0,92601.0,0.06468444]
[1768787966551,0.11330889,92607.0,92584.0,0.02916417]
[1768787966764,0.010803,92607.0,92586.0,0.11283344]
[1768787966947,0.010803,92607.0,92590.0,0.14564559]
[1768787967654,0.010803,92607.0,92591.0,0.010804]
[1768787968048,0.21054889,92608.0,92593.0,0.010804]
[1768787968958,0.21054889,92608.0,92593.0,0.00875179]
[1768787969259,0.21054889,92608.0,92595.0,0.010804]
[1768787970757,0.21054889,92608.0,92592.0,0.010804]
[1768787970959,0.09724,92608.0,92594.0,0.010804]
[1768787971259,0.09724,92608.0,92596.0,0.010804]
[1768787971755,0.09724,92608.0,92596.0,0.01096595]
[1768787972258,0.09724,92608.0,92597.0,0.00016195]
[1768787972859,0.108043,92608.0,92597.0,0.00016195]
[1768787973062,0.09724,92608.0,92597.0,0.00016195]
[1768787973857,0.09724,92608.0,92596.0,0.010804]
[1768787974061,0.09724,92608.0,92597.0,0.00016195]
[1768787974561,0.09724,92608.0,92598.0,0.00016195]
[1768787975063,0.09724,92608.0,92599.0,0.00016195]
[1768787975363,0.09724,92608.0,92595.0,0.01096595]
[1768787975858,0.09724,92608.0,92597.0,0.010804]
[1768787976059,0.09724,92608.0,92600.0,0.010803]
[1768787976261,0.00016195,92610.0,92598.0,0.00016195]
[1768787976459,0.14564559,92620.0,92598.0,0.14564559]
[1768787976460,0.12410989,92619.0,92598.0,0.14564559]
[1768787976650,0.09724,92618.0,92609.0,0.14564559]
[1768787977059,0.09724,92618.0,92609.0,0.14326897]
[1768787977363,0.09724,92618.0,92610.0,0.010802]
[1768787977560,0.09724,92618.0,92609.0,0.14326897]
[1768787977763,0.09724,92618.0,92604.0,0.010803]
[1768787977974,0.09724,92618.0,92606.0,0.010803]
[1768787978163,0.09724,92618.0,92608.0,0.00016195]
[1768787978665,0.09724,92618.0,92610.0,0.00016195]
[1768787978865,0.010802,92617.0,92609.0,0.00016195]
[1768787979067,0.010802,92617.0,92606.0,0.00016195]
[1768787979266,0.010802,92617.0,92608.0,0.00016195]
[1768787979468,0.09724,92618.0,92608.0,0.00016195]
[1768787979661,0.108041,92618.0,92610.0,0.00016195]
[1768787979861,0.010802,92616.0,92611.0,0.00016195]
[1768787980062,0.010802,92616.0,92613.0,0.00016195]
[1768787980262,0.010802,92616.0,92607.0,0.00016195]
[1768787980458,0.010802,92616.0,92602.0,0.010803]
[1768787980968,0.010802,92616.0,92609.0,0.00016195]
[1768787981162,0.010802,92616.0,92608.0,0.00016195]
[1768787981368,0.010802,92616.0,92609.0,0.00016195]
[1768787981668,0.010802,92616.0,92612.0,0.00016195]
[1768787981969,0.010802,92616.0,92609.0,0.00016195]
[1768787982467,0.09724,92618.0,92612.0,0.00016195]
[1768787982769,0.09724,92618.0,92606.0,0.00016195]
[1768787983268,0.09724,92618.0,92610.0,0.00016195]
[1768787983659,0.010802,92617.0,92602.0,0.010803]
[1768787983963,0.09724,92618.0,92603.0,0.010803]
[1768787984367,0.09724,92618.0,92605.0,0.010803]
[1768787984760,0.09724,92618.0,92607.0,0.010803]
[1768787985267,0.09724,92618.0,92609.0,0.010802]
[1768787989366,0.11280963,92617.0,92605.0,0.010803]
[1768787989572,0.09724,92618.0,92608.0,0.010803]
[1768787990272,0.09724,92618.0,92610.0,0.010802]
[1768787990971,0.09724,92618.0,92607.0,0.010803]
[1768787991373,0.09724,92618.0,92609.0,0.010802]
[1768787991970,0.09724,92618.0,92606.0,0.010803]
[1768787992873,0.09724,92618.0,92608.0,0.010803]
[1768787993378,0.09724,92618.0,92608.0,0.00842587]
[1768787994276,0.09724,92618.0,92609.0,0.010802]
[1768787994774,0.00016195,92622.0,92614.0,0.010802]
[1768787995164,0.11133061,92639.0,92613.0,0.10834498]
[1768787995360,0.0108,92632.0,92617.0,0.010801]
[1768787995564,0.12212961,92635.0,92619.0,0.010801]
[1768787996961,0.11133061,92635.0,92618.0,0.00016195]
[1768787997160,0.09919999,92634.0,92618.0,0.00016195]
[1768787997662,0.12213061,92633.0,92619.0,0.010801]
[1768787998262,0.2105306,92633.0,92618.0,0.01096295]
[1768787998467,0.2105306,92633.0,92618.0,0.0109649]
[1768787999068,0.2105306,92633.0,92618.0,0.0217659]
[1768787999373,0.2105306,92633.0,92620.0,0.010801]
[1768788000171,0.11133061,92637.0,92622.0,0.010801]
[1768788000367,0.2105306,92639.0,92622.0,0.010801]
[1768788000675,0.09919999,92633.0,92618.0,0.00016195]
[1768788000876,0.2105306,92631.0,92618.0,0.00016195]
[1768788001070,0.11133061,92628.0,92618.0,0.00016195]
[1768788001271,0.11133061,92627.0,92618.0,0.00016195]
[1768788001573,0.010801,92626.0,92609.0,0.010802]
[1768788001776,0.2105306,92622.0,92604.0,0.010803]
[1768788001975,0.11133061,92612.0,92603.0,0.09724]
[1768788002277,0.11133061,92626.0,92605.0,0.20200908]
[1768788002472,0.11133061,92622.0,92604.0,0.02916417]
[1768788002681,0.09919999,92623.0,92609.0,0.010802]
[1768788003073,0.09724,92629.0,92613.0,0.010802]
[1768788003272,0.09724,92629.0,92617.0,0.010801]
[1768788003575,0.09724,92629.0,92614.0,0.010802]
[1768788004374,0.19643999,92629.0,92611.0,0.010802]
[1768788004579,0.2105306,92628.0,92611.0,0.010802]
[1768788004980,0.11133061,92626.0,92608.0,0.010803]
[1768788005181,0.2105306,92625.0,92608.0,0.010803]
[1768788005377,0.11133061,92622.0,92607.0,0.010803]
[1768788005580,0.11133061,92622.0,92609.0,0.010802]
[1768788006373,0.11133061,92626.0,92606.0,0.00016195]
[1768788006568,0.2105306,92626.0,92606.0,0.09382605]
[1768788006880,0.11133061,92625.0,92613.0,0.010802]
[1768788007076,0.2105306,92624.0,92609.0,0.010802]
[1768788007379,0.11133061,92613.0,92605.0,0.02916417]
[1768788007580,0.2105306,92611.0,92600.0,0.03862256]
[1768788007775,0.2105306,92611.0,92597.0,0.04942656]
[1768788007974,0.11133061,92610.0,92595.0,0.13586256]
[1768788008483,0.11133061,92610.0,92596.0,0.010804]
[1768788008780,0.010802,92609.0,92594.0,0.03862256]
[1768788009081,0.00016195,92612.0,92593.0,0.03862256]
[1768788009376,0.11149256,92612.0,92595.0,0.010804]
[1768788009782,0.09919999,92610.0,92595.0,0.04942656]
[1768788009970,0.2105306,92608.0,92595.0,0.04942656]
[1768788010169,0.00016195,92612.0,92595.0,0.03862256]
[1768788010474,0.00016195,92612.0,92600.0,0.010803]
[1768788011080,0.010801,92621.0,92603.0,0.0936641]
[1768788011376,0.010801,92621.0,92604.0,0.0936641]
[1768788011576,0.09724,92623.0,92598.0,0.010804]
[1768788011787,0.09724,92623.0,92594.0,0.14696754]
[1768788011788,0.09724,92623.0,92594.0,0.04942656]
[1768788011971,0.010802,92614.0,92594.0,0.04942656]
[1768788012180,0.09919999,92621.0,92594.0,0.03862256]
[1768788012377,0.09919999,92619.0,92594.0,0.03862256]
[1768788012577,0.11133061,92616.0,92596.0,0.0936641]
[1768788012977,0.11133061,92622.0,92598.0,0.20200908]
[1768788013174,0.11133061,92622.0,92605.0,0.010803]
[1768788013375,0.12213161,92621.0,92599.0,0.0936641]
[1768788013579,0.09919999,92620.0,92597.0,0.00016195]
[1768788013780,0.11133061,92619.0,92597.0,0.00016195]
[1768788013979,0.09919999,92620.0,92597.0,0.00016195]
[1768788013980,0.2105306,92617.0,92597.0,0.00016195]
[1768788014180,0.09724,92623.0,92590.0,0.03862256]
[1768788014181,0.11133061,92604.0,92590.0,0.13586256]
[1768788014380,0.11133061,92604.0,92591.0,0.010804]
[1768788014576,0.11133061,92604.0,92589.0,0.03862256]
[1768788014779,0.11133061,92599.0,92585.0,0.03862256]
[1768788015288,0.11133061,92599.0,92584.0,0.03862256]
[1768788015589,0.11133061,92589.0,92576.0,0.00012766]
[1768788015893,0.11133061,92589.0,92577.0,0.010806]
[1768788016190,0.00016195,92592.0,92576.0,0.00012766]
[1768788016380,0.11149256,92592.0,92576.0,0.00012766]
[1768788016577,0.11149256,92592.0,92576.0,0.01093366]
[1768788016775,0.00016195,92592.0,92580.0,0.010806]
[1768788017288,0.00016195,92592.0,92579.0,0.010806]
[1768788017589,0.00016195,92592.0,92576.0,0.00012766]
[1768788017988,0.11133061,92590.0,92576.0,0.00012766]
[1768788018182,0.11133061,92590.0,92578.0,0.010806]
[1768788018587,0.00016195,92592.0,92576.0,0.00012766]
[1768788018789,0.00016195,92592.0,92580.0,0.010806]
[1768788018981,0.00016195,92592.0,92583.0,0.010805]
[1768788019488,0.00016195,92592.0,92585.0,0.010805]
[1768788019789,0.00016195,92592.0,92582.0,0.010806]
[1768788019993,0.00016195,92592.0,92584.0,0.010805]
[1768788020585,0.00016195,92592.0,92586.0,0.010805]
[1768788020984,0.00016195,92592.0,92582.0,0.010806]
[1768788021184,0.00016195,92592.0,92584.0,0.010805]
[1768788021894,0.00016195,92592.0,92576.0,0.00012766]
[1768788022192,0.00016195,92592.0,92581.0,0.010806]
[1768788023192,0.00016195,92592.0,92577.0,0.010806]
[1768788023392,0.00016195,92592.0,92582.0,0.010805]
[1768788024089,0.00016195,92592.0,92576.0,0.2082067]
[1768788024301,0.00016195,92592.0,92585.0,0.010805]
[1768788025294,0.00016195,92592.0,92576.0,0.00012766]
[1768788025683,5.9e-07,92609.0,92606.0,0.010803]
[1768788025889,0.09119628,92622.0,92610.0,0.010802]
[1768788026089,0.02323742,92621.0,92612.0,0.010802]
[1768788026288,0.02323742,92620.0,92600.0,0.11067436]
[1768788026489,0.02323716,92619.0,92610.0,0.010802]
[1768788026795,0.09724,92624.0,92600.0,0.11067436]
[1768788026796,0.09724,92624.0,92614.0,0.010802]
[1768788027095,0.02323761,92623.0,92611.0,0.010802]
[1768788027305,0.02323761,92622.0,92611.0,0.010802]
[1768788027489,0.02323761,92621.0,92611.0,0.010802]
[1768788027803,0.09724,92632.0,92613.0,0.09740468]
[1768788027983,0.09724,92636.0,92623.0,0.010801]
[1768788028686,0.09724,92636.0,92619.0,0.09740468]
[1768788029192,0.09724,92636.0,92629.0,0.0108]
[1768788029786,0.05107886,92642.0,92629.0,0.0108]
[1768788029985,0.05107886,92642.0,92619.0,0.09740468]
[1768788029986,0.05107886,92642.0,92625.0,0.0108]
[1768788031499,0.06187786,92642.0,92625.0,0.0108]
[1768788032294,0.09724,92643.0,92629.0,0.0108]
[1768788032494,0.09724,92643.0,92624.0,0.00016195]
[1768788032682,0.00237468,92644.0,92633.0,0.0108]
[1768788032988,0.00237468,92644.0,92637.0,0.010799]
[1768788033188,6.8e-07,92644.0,92630.0,0.20807904]
[1768788033500,6.8e-07,92644.0,92631.0,0.09740468]
[1768788034200,0.09724,92652.0,92643.0,0.010798]
[1768788034393,0.09724,92652.0,92639.0,0.010799]
[1768788034892,0.13833506,92663.0,92638.0,0.09740468]
[1768788035190,0.09724,92661.0,92640.0,0.20807904]
[1768788035397,0.04660652,92658.0,92639.0,0.010799]
[1768788035594,0.05740352,92654.0,92638.0,0.09724]
[1768788035986,0.05740352,92654.0,92633.0,0.09740468]
[1768788035987,0.010798,92651.0,92633.0,0.0108]
[1768788036183,0.010798,92651.0,92604.0,0.38896]
[1768788036184,0.1378028,92647.0,92629.0,0.01320544]
[1768788036399,0.010798,92647.0,92631.0,0.09724]
[1768788036593,0.05740452,92647.0,92631.0,0.09724]
[1768788036794,0.00016195,92660.0,92624.0,0.00016195]
[1768788036795,0.010798,92644.0,92624.0,0.00016195]
[1768788036994,0.04660652,92642.0,92625.0,0.09724]
[1768788037195,0.04660652,92642.0,92627.0,0.0108]
[1768788037491,0.04660652,92642.0,92624.0,0.10820295]
[1768788037492,0.04631547,92641.0,92624.0,0.10820295]
[1768788038292,0.04631547,92641.0,92627.0,0.0108]
[1768788039892,0.06800735,92640.0,92624.0,0.09740195]
[1768788040089,0.04496916,92638.0,92624.0,0.09740195]
[1768788040290,0.04496916,92637.0,92624.0,0.01364829]
[1768788040495,0.04496916,92637.0,92618.0,0.010801]
[1768788040496,0.03132087,92633.0,92618.0,0.010801]
[1768788041196,0.03132087,92633.0,92622.0,0.010801]
[1768788041503,0.03077072,92639.0,92627.0,0.0108]
[1768788041696,0.03077072,92636.0,92625.0,0.010801]
[1768788041897,0.03077072,92636.0,92627.0,0.0108]
[1768788042686,0.03077072,92636.0,92624.0,0.010801]
[1768788042891,0.03077072,92636.0,92621.0,0.02428027]
[1768788043195,0.09858692,92637.0,92623.0,0.010801]
[1768788043392,0.12935764,92637.0,92623.0,0.010801]
[1768788045306,0.24280739,92650.0,92621.0,0.01347927]
[1768788045307,0.02903897,92641.0,92626.0,0.0108]
[1768788045510,0.02903897,92640.0,92626.0,0.0108]
[1768788045803,0.02903897,92638.0,92623.0,0.010801]
[1768788047204,0.02903897,92636.0,92621.0,0.01364122]
[1768788047399,0.00318209,92633.0,92621.0,0.01364122]
[1768788047602,0.0108,92630.0,92621.0,0.00016195]
[1768788047800,0.09858692,92638.0,92621.0,0.00016195]
[1768788048202,0.09858692,92637.0,92622.0,0.010801]
[1768788048404,0.09858692,92637.0,92627.0,0.14556739]
[1768788048596,0.09858692,92637.0,92621.0,0.00016195]
[1768788048895,0.09858692,92637.0,92623.0,0.010801]
[1768788049101,0.010799,92635.0,92621.0,0.00016195]
[1768788049494,0.00271464,92634.0,92621.0,0.00016195]
[1768788049810,0.0108,92629.0,92621.0,0.00016195]
[1768788050794,0.00271464,92622.0,92605.0,0.0972]
[1768788051002,0.00271464,92620.0,92610.0,0.14556739]
[1768788051907,0.09858692,92621.0,92610.0,0.15636939]
[1768788052097,0.19578692,92627.0,92612.0,0.010802]
[1768788053012,0.19578692,92627.0,92610.0,0.14556739]
[1768788053503,0.19578692,92627.0,92614.0,0.010802]
[1768788054007,0.19578692,92627.0,92610.0,0.14556739]
[1768788054207,0.19578692,92627.0,92608.0,0.0135699]
[1768788054411,0.00172583,92615.0,92599.0,0.0581428]
[1768788054596,0.00172583,92612.0,92598.0,0.010804]
[1768788054795,0.00172583,92612.0,92600.0,0.14556739]
[1768788055409,0.010802,92611.0,92600.0,0.14556739]
[1768788055708,0.00083627,92610.0,92596.0,0.010804]
[1768788055905,0.00083627,92610.0,92593.0,0.0689468]
[1768788056106,0.010803,92609.0,92593.0,0.0689468]
[1768788056323,0.00083627,92602.0,92587.0,0.0581428]
[1768788056497,0.00083627,92601.0,92587.0,0.010805]
[1768788056903,0.00083627,92606.0,92590.0,0.15637239]
[1768788057306,0.00083627,92606.0,92592.0,0.010804]
[1768788057610,0.0972,92605.0,92592.0,0.010804]
[1768788058202,0.0972,92605.0,92590.0,0.14556739]
[1768788058600,0.00016195,92615.0,92612.0,0.10673716]
[1768788058803,0.0972,92639.0,92615.0,0.09593516]
[1768788059110,0.02285131,92638.0,92629.0,0.14556739]
[1768788059319,0.02285131,92637.0,92621.0,0.010801]
[1768788059505,0.02285131,92636.0,92620.0,0.14556739]
[1768788059695,0.02285131,92635.0,92620.0,0.14556739]
[1768788059899,0.0972,92639.0,92620.0,0.14556739]
[1768788059900,0.02285131,92634.0,92620.0,0.14556739]
[1768788060103,0.02285131,92633.0,92620.0,0.14556739]
[1768788060310,0.010799,92635.0,92620.0,0.14556739]
[1768788060509,0.09858771,92620.0,92617.0,9.5e-07]
[1768788060703,0.09858771,92620.0,92605.0,0.010803]
[1768788061012,0.09858771,92620.0,92599.0,0.19317516]
[1768788061209,0.09858771,92620.0,92604.0,0.010803]
[1768788061511,0.00850692,92622.0,92604.0,0.010803]
[1768788062799,0.09858771,92612.0,92590.0,0.05825187]
[1768788063005,0.09858771,92610.0,92588.0,0.010805]
[1768788063205,0.09858771,92610.0,92582.0,0.05825187]
[1768788063403,0.0003339,92599.0,92581.0,0.05825187]
[1768788063709,0.0003339,92599.0,92581.0,0.010806]
[1768788063907,0.010804,92598.0,92578.0,0.05825187]
[1768788064413,0.010804,92595.0,92577.0,0.05825187]
[1768788065220,0.010804,92595.0,92576.0,0.05837953]
[1768788065508,0.0003339,92599.0,92576.0,0.06918553]
[1768788065709,0.010804,92599.0,92578.0,0.010806]
[1768788065909,0.010804,92599.0,92579.0,0.09593516]
[1768788066107,0.09724,92600.0,92579.0,0.21572332]
[1768788066300,0.01096495,92608.0,92594.0,0.09593516]
[1768788066301,0.00016195,92608.0,92594.0,0.09593516]
[1768788066612,0.010801,92623.0,92604.0,0.010803]
[1768788066812,0.00337523,92626.0,92604.0,0.010803]
[1768788066813,0.09724,92622.0,92604.0,0.10673816]
[1768788067015,0.09724,92622.0,92608.0,0.010803]
[1768788067400,0.09724,92622.0,92604.0,0.10673816]
[1768788067604,0.108041,92622.0,92604.0,0.09593516]
[1768788067805,0.00141072,92610.0,92593.0,0.010804]
[1768788068003,0.00141072,92609.0,92586.0,0.09724]
[1768788068213,0.010802,92613.0,92588.0,0.21572332]
[1768788068411,0.010802,92613.0,92590.0,0.09593516]
[1768788068615,0.010802,92613.0,92592.0,0.09593516]
[1768788068915,0.09858771,92612.0,92590.0,0.010805]
[1768788069120,0.01221272,92617.0,92596.0,0.010804]
[1768788069316,0.01221272,92617.0,92595.0,0.010804]
[1768788069516,0.00141072,92617.0,92595.0,0.010804]
[1768788069702,0.09999843,92617.0,92597.0,0.00016195]
[1768788069910,0.010802,92610.0,92597.0,0.00016195]
[1768788070203,0.010803,92607.0,92597.0,0.00016195]
[1768788070414,0.00219605,92609.0,92597.0,0.00016195]
[1768788070612,0.010803,92608.0,92597.0,0.00016195]
[1768788071414,0.01289102,92608.0,92597.0,0.00016195]
[1768788071615,0.010803,92605.0,92597.0,0.00016195]
[1768788071825,0.010803,92605.0,92589.0,0.05825187]
[1768788072213,0.20662971,92610.0,92589.0,0.06905687]
[1768788072511,0.20855578,92610.0,92589.0,0.06905687]
[1768788072820,0.19775378,92610.0,92593.0,0.010804]
[1768788073023,0.00016195,92609.0,92593.0,0.010804]
[1768788073721,0.00016195,92609.0,92589.0,0.05825187]
[1768788074221,0.00342791,92609.0,92589.0,0.05825187]
[1768788074406,0.00342791,92609.0,92590.0,0.05825187]
[1768788074921,0.010803,92604.0,92590.0,0.05825187]
[1768788076321,0.00298994,92593.0,92575.0,0.07735586]
[1768788076514,0.09724,92592.0,92572.0,0.010807]
[1768788076716,0.01096495,92609.0,92573.0,0.09593516]
[1768788076717,0.09724,92591.0,92573.0,0.09593516]
[1768788076915,0.010806,92583.0,92576.0,6.6e-07]
[1768788077221,0.010806,92581.0,92576.0,6.6e-07]
[1768788077425,0.010805,92584.0,92576.0,6.6e-07]
[1768788077814,0.000127,92583.0,92576.0,6.6e-07]
[1768788079025,0.010806,92582.0,92576.0,6.6e-07]
[1768788079418,0.000127,92583.0,92576.0,6.6e-07]
[1768788080526,0.000127,92583.0,92576.0,0.01080666]
[1768788081426,0.000127,92583.0,92576.0,6.6e-07]
[1768788081622,0.000127,92583.0,92576.0,0.01080666]
[1768788082421,9.5e-07,92589.0,92588.0,0.09443252]
[1768788082625,9.5e-07,92589.0,92582.0,0.10981081]
[1768788082626,0.09724,92600.0,92590.0,0.09443252]
[1768788082927,0.02458016,92599.0,92590.0,0.09443252]
[1768788083118,0.02458016,92598.0,92590.0,0.09443252]
[1768788083319,0.02458016,92597.0,92590.0,0.09443252]
[1768788083520,0.09724,92600.0,92590.0,0.09443252]
[1768788083521,0.02458016,92596.0,92590.0,0.09443252]
[1768788083823,0.09724,92600.0,92590.0,0.09443252]
[1768788084022,0.05851137,92599.0,92576.0,6.6e-07]
[1768788084223,0.05851137,92599.0,92568.0,0.10981081]
[1768788084224,0.03365005,92585.0,92524.0,0.00237776]
[1768788084531,0.010807,92573.0,92554.0,0.010809]
[1768788084731,0.010808,92560.0,92530.0,0.09724]
[1768788084931,0.010808,92560.0,92540.0,0.01081]
[1768788085130,0.010808,92563.0,92540.0,0.10981176]
[1768788085319,0.09724,92565.0,92534.0,0.010811]
[1768788085524,0.09724,92565.0,92542.0,0.01081]
[1768788085525,0.010808,92560.0,92542.0,0.01081]
[1768788085720,0.09724,92565.0,92543.0,0.10981176]
[1768788086029,0.010809,92557.0,92538.0,0.010811]
[1768788086329,0.09724,92565.0,92548.0,0.09443252]
[1768788086519,0.010808,92564.0,92548.0,0.09443252]
[1768788086723,0.010807,92567.0,92548.0,0.09443252]
[1768788086932,0.09724,92566.0,92548.0,0.09443252]
[1768788087631,0.010808,92565.0,92548.0,0.09443252]
[1768788087832,0.11278941,92557.0,92529.0,0.00237765]
[1768788088038,0.11278937,92547.0,92529.0,0.00237765]
[1768788088221,0.09724,92547.0,92529.0,0.01318965]
[1768788088426,0.09724,92547.0,92532.0,0.10981176]
[1768788088923,0.09724,92547.0,92529.0,0.00237765]
[1768788088924,0.21002937,92547.0,92529.0,0.00237765]
[1768788089126,0.09724,92547.0,92532.0,0.10981176]
[1768788089629,0.09724,92547.0,92534.0,0.10981176]
[1768788089833,0.09724,92547.0,92533.0,0.10981176]
[1768788090028,0.09724,92547.0,92529.0,0.00237765]
[1768788090335,0.10805,92547.0,92533.0,0.10981176]
[1768788090536,0.21310903,92547.0,92533.0,0.10981176]
[1768788090837,0.11586903,92546.0,92529.0,0.00237765]
[1768788091420,0.01081,92542.0,92529.0,0.00237765]
[1768788091632,0.09724,92547.0,92529.0,6.5e-07]
[1768788091633,0.21338928,92545.0,92529.0,6.5e-07]
[1768788091826,0.21338928,92542.0,92529.0,6.5e-07]
[1768788092028,0.21338928,92540.0,92529.0,6.5e-07]
[1768788092335,0.010812,92532.0,92529.0,6.5e-07]
[1768788092528,0.10833225,92532.0,92513.0,0.09443252]
[1768788092733,0.010812,92528.0,92509.0,0.00237816]
[1768788093037,0.09752025,92532.0,92509.0,0.00237816]
[1768788093038,0.010812,92525.0,92509.0,0.00237816]
[1768788093626,0.00016213,92526.0,92510.0,0.10981081]
[1768788093827,0.01081,92542.0,92516.0,0.09443252]
[1768788094125,0.05838019,92542.0,92524.0,0.010812]
[1768788094337,0.09728,92541.0,92524.0,0.10524452]
[1768788094727,0.10809,92541.0,92524.0,0.09443252]
[1768788095132,0.09728,92541.0,92524.0,0.10524452]
[1768788095328,0.05917576,92555.0,92533.0,0.09443252]
[1768788095534,0.010809,92553.0,92534.0,0.09443252]
[1768788095734,0.09728,92552.0,92534.0,0.09443252]
[1768788095944,0.010809,92551.0,92534.0,0.09459465]
[1768788096836,0.01081,92548.0,92534.0,0.09459465]
[1768788097037,0.30829306,92552.0,92534.0,0.00016213]
[1768788097235,0.01081,92544.0,92534.0,0.00016213]
[1768788097439,0.01081,92544.0,92526.0,0.09443252]
[1768788097736,0.01081,92544.0,92517.0,0.09728]
[1768788097737,0.21338928,92543.0,92517.0,0.09728]
[1768788097927,0.010811,92535.0,92517.0,0.09728]
[1768788098432,0.010811,92535.0,92517.0,0.108093]
[1768788098629,0.010811,92532.0,92517.0,0.09728]
[1768788099028,0.010811,92532.0,92514.0,0.09443252]
[1768788099534,0.010811,92532.0,92514.0,0.10524652]
[1768788099726,0.09744213,92532.0,92515.0,0.09833842]
[1768788101538,0.09744213,92532.0,92509.0,0.00237816]
[1768788102046,0.09744213,92532.0,92509.0,0.11153058]
[1768788102429,0.010812,92528.0,92511.0,0.010814]
[1768788102631,0.09744213,92532.0,92512.0,0.09833842]
[1768788102934,0.09732,92535.0,92522.0,0.10915142]
[1768788103132,0.09732,92535.0,92523.0,0.21467785]
[1768788103442,0.09732,92541.0,92534.0,0.010811]
[1768788103740,0.09732,92544.0,92534.0,0.09833842]
[1768788104826,0.09732,92544.0,92534.0,0.10914942]
[1768788105035,0.010809,92551.0,92534.0,0.10914942]
[1768788105330,0.09732,92550.0,92534.0,0.10914942]
[1768788105734,0.01081,92546.0,92529.0,0.010812]
[1768788105929,0.20179627,92547.0,92519.0,0.09833842]
[1768788106129,0.01081,92546.0,92523.0,0.11633943]
[1768788106325,0.01081,92546.0,92529.0,0.09833842]
[1768788106733,0.09732,92550.0,92529.0,0.09833842]
[1768788106734,0.010809,92549.0,92531.0,0.010811]
[1768788107040,0.01081,92547.0,92531.0,0.010811]
[1768788107434,0.09732,92550.0,92529.0,0.09833842]
[1768788107836,0.2064106,92550.0,92529.0,0.09833842]
[1768788108342,0.01081,92546.0,92531.0,0.010812]
[1768788108544,0.010809,92549.0,92531.0,0.010812]
[1768788109035,0.09270567,92555.0,92529.0,0.09833842]
[1768788109240,0.09732,92554.0,92529.0,0.09833842]
[1768788109537,0.60228,92563.0,92545.0,0.10914842]
[1768788109538,0.010808,92563.0,92545.0,0.10914842]
[1768788109737,0.09732,92562.0,92547.0,0.01081]
[1768788110640,0.010808,92561.0,92545.0,0.09833842]
[1768788111837,0.11701247,92559.0,92541.0,0.01081]
[1768788112139,0.010808,92559.0,92541.0,0.01081]
[1768788113125,0.28551774,92562.0,92538.0,0.010811]
[1768788113330,0.010809,92555.0,92538.0,0.010811]
[1768788113526,0.01081,92548.0,92532.0,0.010811]
[1768788114135,0.01081,92546.0,92529.0,0.10949214]
[1768788114343,0.09732,92550.0,92530.0,0.10216248]
[1768788114533,0.09732,92550.0,92534.0,0.09868014]
[1768788114734,0.09732,92550.0,92536.0,0.010811]
[1768788114929,0.18512035,92550.0,92528.0,0.00016213]
[1768788115134,0.010811,92540.0,92528.0,0.00016213]
[1768788115642,0.01081,92544.0,92528.0,0.00016213]
[1768788115840,0.08780035,92549.0,92528.0,0.00016213]
[1768788116138,0.01081,92541.0,92528.0,0.00016213]
[1768788116344,0.02487025,92540.0,92528.0,0.00016213]
[1768788116542,0.02487025,92539.0,92528.0,0.00016213]
[1768788116745,0.02487025,92538.0,92528.0,0.00016213]
[1768788116946,0.02487025,92537.0,92528.0,0.00016213]
[1768788117134,2.5e-07,92536.0,92528.0,0.09884227]
[1768788117335,0.010809,92549.0,92533.0,0.010811]
[1768788117646,0.10813,92548.0,92530.0,0.10949214]
[1768788118037,0.10813,92548.0,92532.0,0.010811]
[1768788118634,0.10813,92548.0,92533.0,0.09868014]
[1768788119945,0.09732,92548.0,92536.0,0.010811]
[1768788120334,0.09732,92548.0,92533.0,0.10949114]
[1768788121146,0.09732,92548.0,92536.0,0.010811]
[1768788121347,0.00237725,92544.0,92533.0,0.09868014]
[1768788121535,0.00237725,92544.0,92534.0,0.010811]
[1768788121938,0.00237725,92544.0,92534.0,0.10949114]
[1768788122138,0.00016213,92551.0,92542.0,0.09868014]